[Event "Live Chess"]
[Site "Chess.com"]
[Date "2023.05.21"]
[Round "-"]
[White "Driftboard"]
[Black "MJMykh"]
[Result "0-1"]
[WhiteElo "842"]
[BlackElo "1095"]
[TimeControl "300"]
[EndTime "0:33:05 PDT"]
[Termination "MJMykh won by checkmate"]

1. e4 {[%clk 0:04:59.1]} 1... e5 {[%clk 0:04:58.1]} 2. Nf3 {[%clk 0:04:58.7]}
2... Nc6 {[%clk 0:04:56.1]} 3. Nc3 {[%clk 0:04:58.3]} 3... Bb4 {[%clk
0:04:54.2]} 4. Bb5 {[%clk 0:04:57.2]} 4... Bxc3 {[%clk 0:04:52.5]} 5. dxc3
{[%clk 0:04:53.1]} 5... d6 {[%clk 0:04:51.1]} 6. Bxc6+ {[%clk 0:04:52.2]} 6...
bxc6 {[%clk 0:04:50.6]} 7. O-O {[%clk 0:04:51.5]} 7... Nf6 {[%clk 0:04:50.1]} 8.
h3 {[%clk 0:04:50.4]} 8... h6 {[%clk 0:04:49.5]} 9. Be3 {[%clk 0:04:47.9]} 9...
O-O {[%clk 0:04:48.2]} 10. b3 {[%clk 0:04:43.1]} 10... c5 {[%clk 0:04:43]} 11.
b4 {[%clk 0:04:40.7]} 11... cxb4 {[%clk 0:04:41.7]} 12. cxb4 {[%clk 0:04:39.9]}
12... c6 {[%clk 0:04:41.3]} 13. a3 {[%clk 0:04:39.2]} 13... Be6 {[%clk
0:04:39.7]} 14. c3 {[%clk 0:04:37.5]} 14... a5 {[%clk 0:04:36.3]} 15. Rb1 {[%clk
0:04:34.6]} 15... axb4 {[%clk 0:04:35.2]} 16. axb4 {[%clk 0:04:31.2]} 16... Rb8
{[%clk 0:04:19.7]} 17. Ba7 {[%clk 0:04:25.6]} 17... Rb7 {[%clk 0:04:16.6]} 18.
Ra1 {[%clk 0:04:22.4]} 18... Qc7 {[%clk 0:04:11.1]} 19. Be3 {[%clk 0:04:19.5]}
19... Bc4 {[%clk 0:04:06.2]} 20. Re1 {[%clk 0:04:04.7]} 20... Re8 {[%clk
0:04:03.7]} 21. Nd2 {[%clk 0:03:55.8]} 21... Bb5 {[%clk 0:04:01.7]} 22. c4
{[%clk 0:03:49.6]} 22... Bxc4 {[%clk 0:03:50.3]} 23. Nxc4 {[%clk 0:03:48.3]}
23... Nxe4 {[%clk 0:03:47.8]} 24. Bd2 {[%clk 0:03:34.8]} 24... Nxd2 {[%clk
0:03:45.7]} 25. Qxd2 {[%clk 0:03:33.2]} 25... c5 {[%clk 0:03:38.3]} 26. Nxd6
{[%clk 0:03:30.5]} 26... Rd8 {[%clk 0:03:33.6]} 27. Red1 {[%clk 0:03:22.8]}
27... Rb6 {[%clk 0:03:26.1]} 28. bxc5 {[%clk 0:03:18.3]} 28... Rc6 {[%clk
0:03:20.5]} 29. Qb4 {[%clk 0:03:10.1]} 29... Rxc5 {[%clk 0:03:13.4]} 30. Nb5
{[%clk 0:02:51.5]} 30... Rxd1+ {[%clk 0:03:06.9]} 31. Rxd1 {[%clk 0:02:47.7]}
31... Qb6 {[%clk 0:03:03.8]} 32. Rb1 {[%clk 0:02:33.8]} 32... Rc2 {[%clk
0:02:53.3]} 33. Na3 {[%clk 0:02:22]} 33... Qxf2+ {[%clk 0:02:51]} 34. Kh1 {[%clk
0:01:53.2]} 34... Qxg2# {[%clk 0:02:48.7]} 0-1

[Event "Live Chess"]
[Site "Chess.com"]
[Date "2023.05.21"]
[Round "-"]
[White "blunderabit"]
[Black "Nazar_777"]
[Result "1-0"]
[WhiteElo "1812"]
[BlackElo "1586"]
[TimeControl "300"]
[EndTime "0:33:15 PDT"]
[Termination "blunderabit won by checkmate"]

1. e4 {[%clk 0:04:56.4]} 1... e6 {[%clk 0:04:59.9]} 2. d4 {[%clk 0:04:53.8]}
2... a6 {[%clk 0:04:58.8]} 3. Nf3 {[%clk 0:04:49.3]} 3... h5 {[%clk 0:04:58.1]}
4. Bd3 {[%clk 0:04:42.5]} 4... c5 {[%clk 0:04:57.1]} 5. c3 {[%clk 0:04:36.5]}
5... cxd4 {[%clk 0:04:55.8]} 6. cxd4 {[%clk 0:04:34.7]} 6... Nf6 {[%clk
0:04:54.9]} 7. O-O {[%clk 0:04:30.6]} 7... Be7 {[%clk 0:04:53.7]} 8. Nc3 {[%clk
0:04:25.8]} 8... Qc7 {[%clk 0:04:53]} 9. e5 {[%clk 0:04:16.5]} 9... Ng4 {[%clk
0:04:50.5]} 10. h3 {[%clk 0:04:12.3]} 10... Nh6 {[%clk 0:04:49.1]} 11. Be3
{[%clk 0:03:39.2]} 11... Nc6 {[%clk 0:04:47]} 12. Rc1 {[%clk 0:03:36.5]} 12...
b5 {[%clk 0:04:45.1]} 13. d5 {[%clk 0:03:17.5]} 13... Nxe5 {[%clk 0:04:43.3]}
14. Nxb5 {[%clk 0:03:14.4]} 14... Nxf3+ {[%clk 0:04:41.5]} 15. Qxf3 {[%clk
0:03:12.9]} 15... Qb8 {[%clk 0:04:34.7]} 16. Nc7+ {[%clk 0:03:09.6]} 16... Kf8
{[%clk 0:04:32.3]} 17. d6 {[%clk 0:03:00.6]} 17... Bxd6 {[%clk 0:04:29.6]} 18.
Nxa8 {[%clk 0:02:57.1]} 18... Qxa8 {[%clk 0:04:26.8]} 19. Qxa8 {[%clk
0:02:54.3]} 19... Ke7 {[%clk 0:04:25.3]} 20. Rxc8 {[%clk 0:02:50.5]} 20... Rxc8
{[%clk 0:04:23.1]} 21. Qxc8 {[%clk 0:02:48.8]} 21... Nf5 {[%clk 0:04:21.9]} 22.
Bxf5 {[%clk 0:02:45.9]} 22... exf5 {[%clk 0:04:20.7]} 23. Bc5 {[%clk 0:02:45.2]}
23... Bxc5 {[%clk 0:04:19.5]} 24. Qxc5+ {[%clk 0:02:42.6]} 24... Kf6 {[%clk
0:04:18.8]} 25. Rd1 {[%clk 0:02:41]} 25... g5 {[%clk 0:04:17.9]} 26. Rd6+ {[%clk
0:02:38.4]} 26... Kg7 {[%clk 0:04:16.9]} 27. Rxd7 {[%clk 0:02:37.3]} 27... g4
{[%clk 0:04:15.6]} 28. Qxf5 {[%clk 0:02:35.8]} 28... gxh3 {[%clk 0:04:13.9]} 29.
Rxf7+ {[%clk 0:02:33.2]} 29... Kg8 {[%clk 0:04:12]} 30. Qg6+ {[%clk 0:02:31.8]}
30... Kh8 {[%clk 0:04:10.4]} 31. Qh7# {[%clk 0:02:30.7]} 1-0

[Event "Live Chess"]
[Site "Chess.com"]
[Date "2023.05.21"]
[Round "-"]
[White "Crowded_House"]
[Black "Ian-Morley"]
[Result "1-0"]
[WhiteElo "1663"]
[BlackElo "1067"]
[TimeControl "300"]
[EndTime "0:33:41 PDT"]
[Termination "Crowded_House won by resignation"]

1. d4 {[%clk 0:04:58.3]} 1... e5 {[%clk 0:04:59.2]} 2. dxe5 {[%clk 0:04:55.7]}
2... Nc6 {[%clk 0:04:58.1]} 3. Nf3 {[%clk 0:04:51.3]} 3... Qe7 {[%clk
0:04:55.3]} 4. c3 {[%clk 0:04:49.9]} 4... Nxe5 {[%clk 0:04:45.3]} 5. Nxe5 {[%clk
0:04:39.3]} 5... Qxe5 {[%clk 0:04:43.7]} 6. Nd2 {[%clk 0:04:37.1]} 6... Bc5
{[%clk 0:04:38.8]} 7. Nf3 {[%clk 0:04:33.6]} 7... Qf6 {[%clk 0:04:37.3]} 8. Bg5
{[%clk 0:04:27.2]} 8... Qd6 {[%clk 0:04:33.9]} 9. Qxd6 {[%clk 0:04:23]} 9...
Bxd6 {[%clk 0:04:32.9]} 10. e3 {[%clk 0:04:17.7]} 10... f6 {[%clk 0:04:31.1]}
11. Bh4 {[%clk 0:04:15.6]} 11... g5 {[%clk 0:04:29.4]} 12. Bg3 {[%clk
0:04:14.1]} 12... h5 {[%clk 0:04:26.3]} 13. Bxd6 {[%clk 0:04:10.9]} 13... cxd6
{[%clk 0:04:25.3]} 14. Bd3 {[%clk 0:04:06.8]} 14... Ne7 {[%clk 0:04:23.4]} 15.
O-O-O {[%clk 0:04:01.5]} 15... b6 {[%clk 0:04:21.8]} 16. Nd4 {[%clk 0:03:48]}
16... Bb7 {[%clk 0:04:18.2]} 17. f3 {[%clk 0:03:44.1]} 17... Nd5 {[%clk
0:04:12.9]} 18. e4 {[%clk 0:03:36.1]} 18... Nf4 {[%clk 0:04:10]} 19. Bf1 {[%clk
0:03:27.1]} 19... g4 {[%clk 0:04:03]} 20. Nf5 {[%clk 0:03:18.2]} 20... gxf3
{[%clk 0:03:50.9]} 21. gxf3 {[%clk 0:03:13.2]} 21... O-O {[%clk 0:03:26.5]} 22.
Nxd6 {[%clk 0:03:09.2]} 22... Bc6 {[%clk 0:03:21.8]} 23. Rg1+ {[%clk 0:03:03.4]}
23... Kh8 {[%clk 0:03:20.6]} 24. Nf5 {[%clk 0:02:51.4]} 24... Rg8 {[%clk
0:03:18.9]} 25. Bc4 {[%clk 0:02:41.5]} 25... Rxg1 {[%clk 0:03:16.7]} 26. Rxg1
{[%clk 0:02:40.1]} 26... b5 {[%clk 0:03:10.9]} 27. Bf1 {[%clk 0:02:27.8]} 27...
Nh3 {[%clk 0:03:02.9]} 28. Bxh3 {[%clk 0:02:12.8]} 28... d5 {[%clk 0:02:57]} 29.
Ne7 {[%clk 0:02:05.4]} 29... Be8 {[%clk 0:02:46.4]} 30. Rg8+ {[%clk 0:01:54.8]}
30... Kh7 {[%clk 0:02:44.8]} 31. Bf5+ {[%clk 0:01:52.1]} 31... Kh6 {[%clk
0:02:42.3]} 32. Bd7 {[%clk 0:01:44.4]} 32... Kh7 {[%clk 0:02:31.5]} 33. Rxe8
{[%clk 0:01:42.2]} 33... Rxe8 {[%clk 0:02:30.1]} 34. Bxe8 {[%clk 0:01:41.8]}
34... Kg7 {[%clk 0:02:29.2]} 35. Nc8 {[%clk 0:01:39.5]} 1-0

[Event "Live Chess"]
[Site "Chess.com"]
[Date "2023.05.21"]
[Round "-"]
[White "martynstanley"]
[Black "peter-785"]
[Result "1-0"]
[WhiteElo "1005"]
[BlackElo "1197"]
[TimeControl "300"]
[EndTime "0:33:41 PDT"]
[Termination "martynstanley won by resignation"]

1. d4 {[%clk 0:04:56.7]} 1... d5 {[%clk 0:04:57.8]} 2. e3 {[%clk 0:04:55.9]}
2... c6 {[%clk 0:04:57.4]} 3. Bd3 {[%clk 0:04:52.9]} 3... e6 {[%clk 0:04:56.9]}
4. f4 {[%clk 0:04:51.6]} 4... Nf6 {[%clk 0:04:56.3]} 5. Nf3 {[%clk 0:04:50.2]}
5... Be7 {[%clk 0:04:55.9]} 6. O-O {[%clk 0:04:49]} 6... O-O {[%clk 0:04:55.4]}
7. Ne5 {[%clk 0:04:47.9]} 7... Nbd7 {[%clk 0:04:50]} 8. Rf3 {[%clk 0:04:46.7]}
8... Nxe5 {[%clk 0:04:41.2]} 9. fxe5 {[%clk 0:04:45.2]} 9... Ne4 {[%clk
0:04:37.8]} 10. Nd2 {[%clk 0:04:40.8]} 10... Nxd2 {[%clk 0:04:17.3]} 11. Bxd2
{[%clk 0:04:32]} 11... Bg5 {[%clk 0:04:07.9]} 12. Bxh7+ {[%clk 0:04:27]} 12...
Kxh7 {[%clk 0:04:04.6]} 13. Rh3+ {[%clk 0:04:23.8]} 13... Kg8 {[%clk 0:04:02.1]}
14. Qh5 {[%clk 0:04:22]} 14... Bh6 {[%clk 0:04:00.3]} 15. Rd1 {[%clk 0:04:19.4]}
15... Qg5 {[%clk 0:03:56.2]} 16. Qf3 {[%clk 0:04:15.6]} 16... Qg6 {[%clk
0:03:47.8]} 17. Rg3 {[%clk 0:04:11.8]} 17... Qh7 {[%clk 0:03:44.1]} 18. c3
{[%clk 0:04:07.6]} 18... b5 {[%clk 0:03:40.9]} 19. Qf2 {[%clk 0:04:02.3]} 19...
f6 {[%clk 0:03:30.4]} 20. e4 {[%clk 0:04:02.1]} 20... dxe4 {[%clk 0:03:27.7]}
21. Bxh6 {[%clk 0:03:58.7]} 21... g5 {[%clk 0:03:00]} 22. Bxg5 {[%clk
0:03:53.4]} 22... fxg5 {[%clk 0:02:50.1]} 23. Rxg5+ {[%clk 0:03:51.4]} 23... Qg7
{[%clk 0:02:42.3]} 24. Rxg7+ {[%clk 0:03:46.2]} 24... Kxg7 {[%clk 0:02:41.8]}
25. Qg3+ {[%clk 0:03:42.8]} 25... Kf7 {[%clk 0:02:40.5]} 26. Qf4+ {[%clk
0:03:39.2]} 1-0

[Event "Live Chess"]
[Site "Chess.com"]
[Date "2023.05.21"]
[Round "-"]
[White "BillythekidFellowes"]
[Black "Tiltador"]
[Result "1-0"]
[WhiteElo "2022"]
[BlackElo "761"]
[TimeControl "300"]
[EndTime "0:33:45 PDT"]
[Termination "BillythekidFellowes won by checkmate"]

1. e4 {[%clk 0:04:59.1]} 1... e5 {[%clk 0:04:58.8]} 2. Nf3 {[%clk 0:04:59]} 2...
d6 {[%clk 0:04:56]} 3. Bc4 {[%clk 0:04:58.2]} 3... Be6 {[%clk 0:04:53.8]} 4.
Bxe6 {[%clk 0:04:56.5]} 4... fxe6 {[%clk 0:04:52.1]} 5. c3 {[%clk 0:04:56.4]}
5... Nf6 {[%clk 0:04:50.5]} 6. Qb3 {[%clk 0:04:56.3]} 6... b6 {[%clk 0:04:46.4]}
7. Qxe6+ {[%clk 0:04:55.3]} 7... Qe7 {[%clk 0:04:45.4]} 8. Qc8+ {[%clk 0:04:54]}
8... Qd8 {[%clk 0:04:41.7]} 9. Qb7 {[%clk 0:04:53.9]} 9... Nbd7 {[%clk
0:04:39.4]} 10. d4 {[%clk 0:04:50]} 10... exd4 {[%clk 0:04:35.5]} 11. Nxd4
{[%clk 0:04:44.9]} 11... Nc5 {[%clk 0:04:27.7]} 12. Qc6+ {[%clk 0:04:35.6]}
12... Kf7 {[%clk 0:04:16.6]} 13. f3 {[%clk 0:04:32.4]} 13... Nd3+ {[%clk
0:04:10]} 14. Ke2 {[%clk 0:04:13.8]} 14... Nxc1+ {[%clk 0:03:58.2]} 15. Rxc1
{[%clk 0:04:13.7]} 15... Be7 {[%clk 0:03:48.9]} 16. Nd2 {[%clk 0:04:10.5]} 16...
Re8 {[%clk 0:03:44.9]} 17. Qc4+ {[%clk 0:04:09.4]} 17... Kf8 {[%clk 0:03:39.2]}
18. Ne6+ {[%clk 0:04:08]} 18... Kg8 {[%clk 0:03:24.2]} 19. Nxd8+ {[%clk
0:04:07.9]} 19... Kh8 {[%clk 0:03:22.1]} 20. Nf7+ {[%clk 0:04:06.3]} 20... Kg8
{[%clk 0:03:17.3]} 21. Nh6+ {[%clk 0:04:06.2]} 21... Kh8 {[%clk 0:03:13.9]} 22.
Qg8+ {[%clk 0:04:05.7]} 22... Rxg8 {[%clk 0:03:11.7]} 23. Nf7# {[%clk
0:04:05.6]} 1-0

[Event "Live Chess"]
[Site "Chess.com"]
[Date "2023.05.21"]
[Round "-"]
[White "EdenHazard8"]
[Black "Singapourfeuj"]
[Result "1-0"]
[WhiteElo "1961"]
[BlackElo "2203"]
[TimeControl "300"]
[EndTime "0:33:47 PDT"]
[Termination "EdenHazard8 won by resignation"]

1. e4 {[%clk 0:04:56.9]} 1... c5 {[%clk 0:04:58.8]} 2. Nc3 {[%clk 0:04:55.9]}
2... Nc6 {[%clk 0:04:57.7]} 3. f4 {[%clk 0:04:55.4]} 3... e6 {[%clk 0:04:56.4]}
4. Nf3 {[%clk 0:04:54.9]} 4... d5 {[%clk 0:04:55.5]} 5. d3 {[%clk 0:04:53.4]}
5... Nf6 {[%clk 0:04:52.2]} 6. Be2 {[%clk 0:04:49.9]} 6... dxe4 {[%clk
0:04:51.3]} 7. dxe4 {[%clk 0:04:49.8]} 7... Qxd1+ {[%clk 0:04:49.9]} 8. Bxd1
{[%clk 0:04:46.6]} 8... a6 {[%clk 0:04:48.8]} 9. Be3 {[%clk 0:04:45.5]} 9... b5
{[%clk 0:04:47.6]} 10. e5 {[%clk 0:04:44.3]} 10... Nd5 {[%clk 0:04:45.8]} 11.
Nxd5 {[%clk 0:04:39.7]} 11... exd5 {[%clk 0:04:44.9]} 12. O-O {[%clk 0:04:39.6]}
12... d4 {[%clk 0:04:43.4]} 13. Bf2 {[%clk 0:04:35.6]} 13... Be6 {[%clk
0:04:39.8]} 14. c3 {[%clk 0:04:32]} 14... d3 {[%clk 0:04:34.7]} 15. Re1 {[%clk
0:04:29.3]} 15... O-O-O {[%clk 0:04:32.2]} 16. Nd2 {[%clk 0:04:20.8]} 16... c4
{[%clk 0:04:30.3]} 17. Ne4 {[%clk 0:04:19.3]} 17... Bf5 {[%clk 0:04:22.8]} 18.
Bf3 {[%clk 0:04:15.6]} 18... Kc7 {[%clk 0:04:21.6]} 19. Rad1 {[%clk 0:04:02.1]}
19... h5 {[%clk 0:04:18.9]} 20. a4 {[%clk 0:03:48.1]} 20... Be7 {[%clk
0:04:17.1]} 21. axb5 {[%clk 0:03:45.5]} 21... axb5 {[%clk 0:04:16.4]} 22. b3
{[%clk 0:03:44.3]} 22... h4 {[%clk 0:04:10.8]} 23. bxc4 {[%clk 0:03:40.8]} 23...
bxc4 {[%clk 0:04:10.1]} 24. Nc5 {[%clk 0:03:35.6]} 24... Bxc5 {[%clk 0:04:06.4]}
25. Bxc5 {[%clk 0:03:35.5]} 25... Ra8 {[%clk 0:04:02.1]} 26. Bd6+ {[%clk
0:03:30.8]} 26... Kd7 {[%clk 0:04:00.4]} 27. Rb1 {[%clk 0:03:27.8]} 27... Na5
{[%clk 0:03:56.2]} 28. Bxa8 {[%clk 0:03:15.4]} 28... d2 {[%clk 0:03:54.6]} 29.
Red1 {[%clk 0:03:11]} 29... Bxb1 {[%clk 0:03:53.1]} 30. Bd5 {[%clk 0:02:51.8]}
30... Nb3 {[%clk 0:03:47.9]} 31. Bxc4 {[%clk 0:02:48.5]} 31... Bc2 {[%clk
0:03:44.6]} 32. Bxb3 {[%clk 0:02:46]} 32... Bxd1 {[%clk 0:03:32.1]} 33. Bxd1
{[%clk 0:02:40]} 33... h3 {[%clk 0:03:29.4]} 34. g3 {[%clk 0:02:38.2]} 34... Ra8
{[%clk 0:03:23.6]} 35. Kf2 {[%clk 0:02:36.3]} 35... Ke6 {[%clk 0:03:20.5]} 36.
Ke2 {[%clk 0:02:32]} 36... Kf5 {[%clk 0:03:17.4]} 37. Kxd2 {[%clk 0:02:27.9]}
37... Ra2+ {[%clk 0:03:15.7]} 38. Bc2+ {[%clk 0:02:26.6]} 38... Kg4 {[%clk
0:03:14.9]} 39. Kd3 {[%clk 0:02:11.3]} 39... Kf3 {[%clk 0:03:12.7]} 40. c4
{[%clk 0:02:09]} 40... Kg2 {[%clk 0:03:11]} 41. c5 {[%clk 0:02:08.1]} 41... Kxh2
{[%clk 0:03:09.2]} 42. c6 {[%clk 0:02:06.2]} 42... Kxg3 {[%clk 0:03:07.1]} 43.
c7 {[%clk 0:02:04.1]} 43... Ra8 {[%clk 0:03:05.1]} 44. Bb3 {[%clk 0:02:02.4]}
44... h2 {[%clk 0:03:01]} 45. Bd5 {[%clk 0:01:59.9]} 45... Rh8 {[%clk
0:02:56.5]} 46. Kc4 {[%clk 0:01:54.9]} 46... Kf2 {[%clk 0:02:41.2]} 47. Kb5
{[%clk 0:01:43.5]} 47... Kg1 {[%clk 0:02:36.4]} 48. Kb6 {[%clk 0:01:33.8]} 48...
h1=Q {[%clk 0:02:33.8]} 49. Bxh1 {[%clk 0:01:31.9]} 49... Kxh1 {[%clk
0:02:32.6]} 50. Kb7 {[%clk 0:01:31.5]} 50... Kg2 {[%clk 0:02:30.4]} 51. c8=Q
{[%clk 0:01:31]} 51... Rxc8 {[%clk 0:02:28.8]} 52. Kxc8 {[%clk 0:01:30.9]} 52...
Kf3 {[%clk 0:02:27.9]} 53. f5 {[%clk 0:01:30]} 53... Ke4 {[%clk 0:02:26.9]} 54.
f6 {[%clk 0:01:28.6]} 54... gxf6 {[%clk 0:02:25.9]} 55. exf6 {[%clk 0:01:28.5]}
55... Kf5 {[%clk 0:02:24.4]} 56. Be7 {[%clk 0:01:28]} 56... Ke6 {[%clk
0:02:23.6]} 57. Kd8 {[%clk 0:01:26.9]} 57... Kf5 {[%clk 0:02:22.8]} 58. Ke8
{[%clk 0:01:26.4]} 58... Ke6 {[%clk 0:02:22]} 59. Kf8 {[%clk 0:01:25.9]} 1-0

[Event "Live Chess"]
[Site "Chess.com"]
[Date "2023.05.21"]
[Round "-"]
[White "chessfiction"]
[Black "raimundklein"]
[Result "1-0"]
[WhiteElo "2353"]
[BlackElo "1749"]
[TimeControl "300"]
[EndTime "0:33:54 PDT"]
[Termination "chessfiction won by checkmate"]

1. e4 {[%clk 0:04:59.2]} 1... c6 {[%clk 0:04:58.7]} 2. d4 {[%clk 0:04:58.9]}
2... d5 {[%clk 0:04:57.9]} 3. Nc3 {[%clk 0:04:58.4]} 3... dxe4 {[%clk
0:04:56.6]} 4. f3 {[%clk 0:04:57.6]} 4... exf3 {[%clk 0:04:52.8]} 5. Nxf3 {[%clk
0:04:57.5]} 5... Bg4 {[%clk 0:04:50.4]} 6. Bc4 {[%clk 0:04:51.7]} 6... e6 {[%clk
0:04:48.9]} 7. O-O {[%clk 0:04:49.6]} 7... Nf6 {[%clk 0:04:46.3]} 8. Kh1 {[%clk
0:04:47.8]} 8... Be7 {[%clk 0:04:43.7]} 9. Bg5 {[%clk 0:04:45.5]} 9... O-O
{[%clk 0:04:41.7]} 10. Qe1 {[%clk 0:04:44.1]} 10... Nd5 {[%clk 0:04:32.4]} 11.
Bxe7 {[%clk 0:04:38.5]} 11... Nxe7 {[%clk 0:04:21.2]} 12. Ne5 {[%clk 0:04:35.8]}
12... Bf5 {[%clk 0:04:13.6]} 13. Rd1 {[%clk 0:04:32.3]} 13... Nd5 {[%clk
0:04:08.1]} 14. Ne4 {[%clk 0:04:28.2]} 14... Nd7 {[%clk 0:03:55.8]} 15. Nd6
{[%clk 0:04:08.8]} 15... Nxe5 {[%clk 0:03:53.8]} 16. dxe5 {[%clk 0:04:08.7]}
16... Bxc2 {[%clk 0:03:43.3]} 17. Rd4 {[%clk 0:04:04.7]} 17... Bg6 {[%clk
0:03:37.6]} 18. Qf2 {[%clk 0:03:50.9]} 18... Qb6 {[%clk 0:03:29.6]} 19. b3
{[%clk 0:03:44.2]} 19... a5 {[%clk 0:03:15.2]} 20. h4 {[%clk 0:03:41.6]} 20...
Qc7 {[%clk 0:02:56.6]} 21. g4 {[%clk 0:03:39.6]} 21... h6 {[%clk 0:02:50.6]} 22.
h5 {[%clk 0:03:37.8]} 22... Bh7 {[%clk 0:02:47.8]} 23. a4 {[%clk 0:03:22]} 23...
Rad8 {[%clk 0:02:05.4]} 24. Qg3 {[%clk 0:03:12]} 24... Rd7 {[%clk 0:01:46.9]}
25. g5 {[%clk 0:03:11]} 25... hxg5 {[%clk 0:01:44]} 26. Qxg5 {[%clk 0:03:10.9]}
26... Qd8 {[%clk 0:01:37.3]} 27. Qg3 {[%clk 0:03:03.2]} 27... Rxd6 {[%clk
0:01:14.8]} 28. exd6 {[%clk 0:03:01.9]} 28... Nf6 {[%clk 0:01:09.9]} 29. h6
{[%clk 0:02:59.6]} 29... g6 {[%clk 0:01:06.4]} 30. Qe5 {[%clk 0:02:54.5]} 30...
Nh5 {[%clk 0:01:02.7]} 31. Rg1 {[%clk 0:02:51.3]} 31... Nf6 {[%clk 0:00:38.5]}
32. Rf4 {[%clk 0:02:42.3]} 32... Nd5 {[%clk 0:00:37.6]} 33. Qg7# {[%clk
0:02:37.4]} 1-0

[Event "Live Chess"]
[Site "Chess.com"]
[Date "2023.05.21"]
[Round "-"]
[White "JoeRoot66"]
[Black "batesh8"]
[Result "1-0"]
[WhiteElo "1924"]
[BlackElo "1698"]
[TimeControl "300"]
[EndTime "0:34:11 PDT"]
[Termination "JoeRoot66 won by resignation"]

1. e4 {[%clk 0:04:59.3]} 1... c5 {[%clk 0:04:59.3]} 2. c3 {[%clk 0:04:58.7]}
2... d6 {[%clk 0:04:58]} 3. d4 {[%clk 0:04:58.2]} 3... cxd4 {[%clk 0:04:55]} 4.
cxd4 {[%clk 0:04:58.1]} 4... Nc6 {[%clk 0:04:53.5]} 5. d5 {[%clk 0:04:56.8]}
5... Nb8 {[%clk 0:04:51.1]} 6. Nf3 {[%clk 0:04:56.2]} 6... e6 {[%clk 0:04:49.3]}
7. Nc3 {[%clk 0:04:55.1]} 7... Nf6 {[%clk 0:04:46]} 8. Bc4 {[%clk 0:04:54]} 8...
a6 {[%clk 0:04:39.5]} 9. Bg5 {[%clk 0:04:52.8]} 9... b5 {[%clk 0:04:36.5]} 10.
Bb3 {[%clk 0:04:51.9]} 10... h6 {[%clk 0:04:35.2]} 11. Bxf6 {[%clk 0:04:49.3]}
11... Qxf6 {[%clk 0:04:32.9]} 12. dxe6 {[%clk 0:04:46.7]} 12... Bxe6 {[%clk
0:04:29.5]} 13. Nd5 {[%clk 0:04:41.9]} 13... Qd8 {[%clk 0:04:24]} 14. Rc1 {[%clk
0:04:39.6]} 14... Bxd5 {[%clk 0:04:18.4]} 15. Qxd5 {[%clk 0:04:39.5]} 15... Ra7
{[%clk 0:04:16]} 16. O-O {[%clk 0:04:33.2]} 16... g6 {[%clk 0:04:06.6]} 17. e5
{[%clk 0:04:30.2]} 17... Bg7 {[%clk 0:04:03.3]} 18. exd6 {[%clk 0:04:24.5]}
18... O-O {[%clk 0:04:02.1]} 19. Rfe1 {[%clk 0:04:19]} 19... Bxb2 {[%clk
0:03:59.7]} 20. Rcd1 {[%clk 0:04:17.7]} 20... Bg7 {[%clk 0:03:53.9]} 21. Ne5
{[%clk 0:04:17]} 21... Re8 {[%clk 0:03:44]} 22. d7 {[%clk 0:04:14.5]} 22... Nxd7
{[%clk 0:03:27.1]} 23. Qxf7+ {[%clk 0:04:12.5]} 23... Kh7 {[%clk 0:03:25.2]} 24.
Qxg6+ {[%clk 0:04:07.9]} 24... Kh8 {[%clk 0:03:20]} 25. Nf7+ {[%clk 0:04:07.4]}
25... Kg8 {[%clk 0:03:16.3]} 1-0

[Event "Live Chess"]
[Site "Chess.com"]
[Date "2023.05.21"]
[Round "-"]
[White "Tushinskiy"]
[Black "OSmith06"]
[Result "1-0"]
[WhiteElo "2185"]
[BlackElo "1658"]
[TimeControl "300"]
[EndTime "0:34:15 PDT"]
[Termination "Tushinskiy won by resignation"]

1. d4 {[%clk 0:04:58.3]} 1... Nf6 {[%clk 0:04:58.7]} 2. c3 {[%clk 0:04:58.2]}
2... e6 {[%clk 0:04:58]} 3. Nf3 {[%clk 0:04:58.1]} 3... d5 {[%clk 0:04:57.5]} 4.
Bf4 {[%clk 0:04:57.3]} 4... c5 {[%clk 0:04:57.2]} 5. Bg3 {[%clk 0:04:57.2]} 5...
Nc6 {[%clk 0:04:56.5]} 6. e3 {[%clk 0:04:56.2]} 6... Bd6 {[%clk 0:04:56]} 7. Bd3
{[%clk 0:04:55.1]} 7... O-O {[%clk 0:04:53]} 8. Nbd2 {[%clk 0:04:54.1]} 8... a6
{[%clk 0:04:48.8]} 9. Qe2 {[%clk 0:04:52.4]} 9... b5 {[%clk 0:04:47.8]} 10. Ne5
{[%clk 0:04:51.6]} 10... Qc7 {[%clk 0:04:46]} 11. f4 {[%clk 0:04:49.9]} 11...
Bd7 {[%clk 0:04:44.9]} 12. Bh4 {[%clk 0:04:48.6]} 12... Be7 {[%clk 0:04:39.7]}
13. O-O {[%clk 0:04:43.1]} 13... cxd4 {[%clk 0:04:37.3]} 14. exd4 {[%clk
0:04:41.8]} 14... Rac8 {[%clk 0:04:35.3]} 15. Rac1 {[%clk 0:04:40.3]} 15... Rfe8
{[%clk 0:04:24.1]} 16. Ndf3 {[%clk 0:04:38.3]} 16... Na5 {[%clk 0:04:04.2]} 17.
Ng5 {[%clk 0:04:35.5]} 17... Rf8 {[%clk 0:03:52.8]} 18. Nxh7 {[%clk 0:04:28.9]}
18... Nxh7 {[%clk 0:03:43.1]} 19. Bxe7 {[%clk 0:04:27.1]} 19... Rfe8 {[%clk
0:03:39.4]} 20. Bxh7+ {[%clk 0:04:23.5]} 20... Kxh7 {[%clk 0:03:37.1]} 21. Qh5+
{[%clk 0:04:22.4]} 21... Kg8 {[%clk 0:03:35.9]} 22. Qxf7+ {[%clk 0:04:22.3]}
22... Kh7 {[%clk 0:03:33.9]} 23. Rf3 {[%clk 0:04:20.2]} 1-0